bitfinex-derivatives/quotes_ETHF0:USTF0_20220108
["timestamp","ask_amount","ask_price","bid_price","bid_amount"]
[1641622407536,0.9096,3204.8,3204.7,1.19743815]
[1641622407739,0.78689615,3205.4,3204.7,1.19743815]
[1641622407938,1.42768315,3205.4,3204.7,1.98773195]
[1641622408140,1.42768315,3205.4,3204.7,2.48596277]
[1641622408338,0.78689615,3205.4,3204.7,2.48596277]
[1641622408738,0.78689615,3205.4,3204.8,1.5]
[1641622408940,0.78689615,3205.4,3204.8,2.78852462]
[1641622409142,0.78689615,3205.4,3204.9,0.264788]
[1641622410043,2.79168615,3205.6,3205.0,1.28852462]
[1641622410442,2.79168615,3205.6,3205.1,0.264788]
[1641622410643,4.991732,3205.5,3205.2,0.81787234]
[1641622410843,6.05470999,3205.5,3205.2,0.81787234]
[1641622411045,6.84160614,3205.5,3205.3,0.264788]
[1641622411247,5.77862815,3205.5,3205.3,0.264788]
[1641622411947,4.991732,3205.5,3205.3,0.264788]
[1641622412146,0.21560315,3205.4,3205.3,0.264788]
[1641622412346,1.2785931,3205.4,3205.3,0.264788]
[1641622413547,1.06298995,3205.4,3205.3,0.264788]
[1641622413748,1.8586623,3205.4,3205.3,0.264788]
[1641622413948,0.79567235,3205.4,3205.3,0.264788]
[1641622414250,1.8586623,3205.4,3205.3,0.264788]
[1641622414651,1.06298995,3205.4,3205.3,0.264788]
[1641622414852,1.27862795,3205.4,3205.3,0.76297455]
[1641622415952,2.22182795,3205.4,3205.3,0.76297455]
[1641622416154,2.22182795,3205.4,3205.3,1.55901445]
[1641622416957,2.22182795,3205.4,3205.3,0.264788]
[1641622417156,3.27852026,3205.4,3205.3,0.264788]
[1641622418558,2.33532026,3205.4,3205.3,0.264788]
[1641622418760,2.33532026,3205.4,3205.3,1.764788]
[1641622418960,1.57696751,3205.9,3205.3,1.764788]
[1641622419160,1.57696751,3205.9,3205.5,1.5]
[1641622419362,1.57696751,3205.9,3205.6,0.264788]
[1641622420763,1.57696751,3205.9,3205.7,1.15219279]
[1641622421162,2.00479,3206.1,3205.7,1.15219279]
[1641622421363,2.00479,3206.1,3205.8,0.264788]
[1641622422863,2.00479,3206.1,3205.8,1.207288]
[1641622423566,0.640787,3206.0,3205.8,1.207288]
[1641622424165,2.00479,3206.1,3205.8,1.207288]
[1641622425369,4.99072,3206.0,3205.8,1.207288]
[1641622427672,0.79558044,3205.9,3205.8,1.207288]
[1641622430475,6.00479,3206.1,3205.8,1.207288]
[1641622431175,2.00479,3206.1,3205.8,1.207288]
[1641622432579,0.79553272,3205.9,3205.8,2.0033279]
[1641622433178,2.00479,3206.1,3205.8,2.0033279]
[1641622433179,2.00479,3206.1,3205.8,3.5033279]
[1641622434181,1.32602504,3206.5,3205.8,3.5033279]
[1641622434380,1.32602504,3206.5,3206.3,1.5]
[1641622434582,1.32602504,3206.6,3206.4,0.264788]
[1641622434886,1.57696751,3206.8,3206.5,1.5]
[1641622435082,1.96486474,3207.0,3206.7,1.5]
[1641622435281,2.61981965,3207.3,3206.9,1.5]
[1641622435482,2.61981965,3207.3,3206.7,0.89726027]
[1641622435682,2.00479,3207.4,3207.2,1.5]
[1641622435882,2.00479,3207.4,3207.2,0.8936]
[1641622436282,2.00479,3207.4,3207.2,1.9156988]
[1641622436482,6.00479,3207.4,3207.2,1.9156988]
[1641622436983,6.00479,3207.4,3207.2,1.0220988]
[1641622437383,4.988619,3207.3,3207.2,1.0220988]
[1641622439284,6.05126789,3207.3,3207.2,1.0220988]
[1641622440486,6.21234962,3207.3,3207.2,1.0220988]
[1641622440687,6.21234962,3207.3,3207.2,0.69035656]
[1641622440885,40.81586424,3207.3,3207.2,0.69035656]
[1641622443189,55.67586424,3207.3,3206.7,0.88636892]
[1641622443389,13.36,3206.7,3205.3,18.6113]
[1641622443589,4.0,3205.8,3205.3,18.6113]
[1641622443789,4.0,3205.8,3205.3,0.264788]
[1641622444691,2.00479,3205.7,3205.0,2.00479]
[1641622444890,27.29227309,3205.4,3205.0,2.00479]
[1641622445090,27.29227309,3205.4,3205.1,1.1372106]
[1641622447697,27.29227309,3205.4,3205.2,0.49817866]
[1641622450097,27.29227309,3205.4,3205.2,1.99817866]
[1641622450501,27.29227309,3205.4,3205.3,0.264788]
[1641622450900,28.35533736,3205.4,3205.2,0.49817866]
[1641622451100,4.0,3205.3,3205.2,0.49817866]
[1641622451303,8.991732,3205.3,3205.2,0.49817866]
[1641622451700,8.991732,3205.3,3205.1,0.8724226]
[1641622452199,0.640787,3205.2,3205.1,0.8724226]
[1641622453601,4.0,3205.3,3205.1,0.8724226]
[1641622454202,4.991888,3205.2,3205.1,0.8724226]
[1641622454602,6.300275,3205.2,3205.1,0.8724226]
[1641622455205,7.36339367,3205.2,3205.1,0.8724226]
[1641622456807,9.36818367,3205.2,3205.1,0.8724226]
[1641622458811,22.72818367,3205.2,3205.1,0.8724226]
[1641622459011,22.72818367,3205.2,3204.7,0.7941942]
[1641622459212,4.0,3204.8,3204.7,0.7941942]
[1641622459513,8.992589,3204.8,3204.7,0.7941942]
[1641622459714,8.992589,3204.8,3204.6,0.8251942]
[1641622460012,8.992589,3204.8,3204.7,1.43316545]
[1641622460814,10.997379,3204.8,3204.7,1.43316545]
[1641622468421,6.997379,3204.8,3204.7,1.43316545]
[1641622468825,2.00479,3204.8,3204.7,1.43316545]
[1641622470823,6.00479,3204.8,3204.7,1.43316545]
[1641622472823,6.00479,3204.8,3204.7,2.21616545]
[1641622481434,2.00479,3205.2,3204.7,2.48095345]
[1641622482232,4.992277,3205.1,3204.7,2.48095345]
[1641622484433,2.00479,3205.2,3204.7,2.48095345]
[1641622489437,2.00479,3205.2,3205.0,1.5]
[1641622489636,1.05598388,3205.9,3205.1,0.264788]
[1641622490036,1.0629719,3205.8,3205.1,0.264788]
[1641622490638,1.0629719,3205.8,3205.2,0.78670287]
[1641622490839,1.0629719,3205.8,3205.3,0.264788]
[1641622491639,1.0629719,3205.8,3205.7,2.00479]
[1641622492042,0.640787,3206.0,3205.7,2.00479]
[1641622492240,1.0629719,3205.8,3205.7,2.00479]
[1641622492644,1.0629719,3205.9,3205.7,3.40414554]
[1641622493346,4.990953,3205.8,3205.7,3.40414554]
[1641622493545,4.990953,3205.8,3205.7,3.66893354]
[1641622493945,6.0539249,3205.8,3205.7,3.66893354]
[1641622494245,1.0629719,3205.8,3205.7,3.66893354]
[1641622494647,1.0629719,3206.1,3205.7,3.66893354]
[1641622495246,1.0629719,3205.8,3205.7,3.66893354]
[1641622495647,1.0629719,3205.9,3205.7,3.66893354]
[1641622496247,1.0629719,3206.0,3205.7,3.40414554]
[1641622496448,6.0539249,3205.8,3205.7,3.40414554]
[1641622496647,33.74250939,3205.8,3205.7,3.40414554]
[1641622496847,38.73354039,3205.8,3205.7,3.40414554]
[1641622498350,42.27706645,3205.8,3205.7,3.40414554]
[1641622498849,42.41346528,3205.8,3205.7,3.40414554]
[1641622499448,38.86993922,3205.8,3205.7,3.40414554]
[1641622499649,6.19040173,3205.8,3205.7,3.40414554]
[1641622499952,1.19937073,3205.8,3205.7,3.40414554]
[1641622500949,1.0629719,3205.8,3205.7,3.40414554]
[1641622501752,1.0629719,3206.1,3205.7,3.40414554]
[1641622501952,4.60616289,3206.1,3205.7,4.18854554]
[1641622502152,1.0629719,3205.8,3205.7,5.68854554]
[1641622502752,1.0629719,3206.0,3205.7,5.68854554]
[1641622502951,1.32345811,3206.4,3205.9,1.5]
[1641622503152,1.32345811,3206.4,3206.3,1.5]
[1641622503352,0.51209803,3206.5,3206.3,1.5]
[1641622503553,0.51209803,3206.5,3206.3,1.764788]
[1641622503751,2.64673351,3207.1,3206.3,1.764788]
[1641622503752,2.64673351,3207.1,3206.4,4.00958]
[1641622503953,2.64673351,3207.1,3206.5,1.764788]
[1641622504152,2.64673351,3207.1,3206.5,0.264788]
[1641622504352,2.64673351,3207.1,3206.5,1.20450819]
[1641622504553,1.58499293,3206.9,3206.5,1.20450819]
[1641622505656,1.58499293,3206.9,3206.8,2.00479]
[1641622505954,1.98505013,3207.2,3206.8,2.00479]
[1641622506355,0.10525984,3207.1,3206.8,2.00479]
[1641622506758,0.10525984,3207.1,3206.9,0.264788]
[1641622506957,0.10525984,3207.1,3207.0,1.49636606]
[1641622507764,4.0,3207.2,3207.0,1.49636606]
[1641622509064,0.10525984,3207.1,3207.0,1.49636606]
[1641622509262,0.10525984,3207.1,3207.0,1.76115406]
[1641622510367,2.00479,3207.8,3207.0,3.26115406]
[1641622510564,2.00479,3207.8,3207.3,1.55827318]
[1641622510765,1.98505013,3208.0,3207.4,0.264788]
[1641622510967,3.98984013,3208.1,3207.4,0.264788]
[1641622511364,3.98984013,3208.1,3207.5,1.29850987]
[1641622511565,3.98984013,3208.1,3207.6,0.264788]
[1641622511765,3.98984013,3208.1,3207.6,2.269578]
[1641622511963,1.98505013,3208.1,3207.6,2.269578]
[1641622512364,3.11383351,3208.3,3207.6,2.269578]
[1641622512564,0.4671,3208.3,3207.6,2.269578]
[1641622513265,20.4058,3208.5,3207.6,2.269578]
[1641622513866,6.30781647,3208.4,3207.6,2.269578]
[1641622514066,1.05629077,3208.2,3207.7,1.5]
[1641622514267,1.05629077,3208.2,3207.8,0.264788]
[1641622515070,1.05629077,3208.2,3207.7,0.8394]
[1641622515268,1.05629077,3208.2,3207.6,2.00479]
[1641622515471,0.640787,3208.3,3207.6,2.00479]
[1641622516069,4.0,3207.8,3207.6,2.00479]
[1641622518177,6.19942693,3208.3,3207.6,2.00479]
[1641622518378,1.05629077,3208.2,3207.6,2.00479]
[1641622518778,1.05629077,3208.2,3207.7,0.264788]
[1641622518978,1.05629077,3208.2,3207.7,1.221588]
[1641622519379,1.05629077,3208.4,3207.7,1.221588]
[1641622519582,1.05629077,3208.4,3207.9,1.5]
[1641622519783,1.05629077,3208.4,3208.3,2.00479]
[1641622519981,1.05629077,3208.4,3208.3,2.269578]
[1641622520586,1.05629077,3208.4,3208.3,3.74942518]
[1641622520983,0.03,3208.5,3208.3,3.74942518]
[1641622521782,0.03,3208.5,3208.4,2.00479]
[1641622523285,1.09222168,3208.5,3208.4,2.00479]
[1641622523484,1.09222168,3208.5,3208.4,2.61419]
[1641622525789,0.03,3208.5,3208.4,2.61419]
[1641622526387,1.09219109,3208.5,3208.4,2.61419]
[1641622526587,0.03,3208.5,3208.4,2.61419]
[1641622526887,1.09219109,3208.5,3208.4,2.61419]
[1641622527088,0.03,3208.5,3208.4,2.61419]
[1641622529189,0.03,3208.5,3208.4,4.11419]
[1641622529990,0.03,3208.5,3208.4,2.61419]
[1641622531288,0.0001,3208.5,3208.4,2.61419]
[1641622548021,0.0001,3208.5,3208.4,2.00479]
[1641622548421,0.7005,3208.5,3208.4,2.00479]
[1641622549023,1.76262226,3208.5,3208.4,2.00479]
[1641622552724,1.06222226,3208.5,3208.4,2.00479]
[1641622554027,0.0001,3208.5,3208.4,2.00479]
[1641622554426,1.06222226,3208.5,3208.4,2.00479]
[1641622554828,0.0001,3208.5,3208.4,2.00479]
[1641622555530,1.06222226,3208.5,3208.4,2.00479]
[1641622555730,0.0001,3208.5,3208.4,2.00479]
[1641622556132,1.06222226,3208.5,3208.4,2.00479]
[1641622556531,0.0001,3208.5,3208.4,2.00479]
[1641622556735,1.06222226,3208.5,3208.4,2.00479]
[1641622557132,0.0001,3208.5,3208.4,2.00479]
[1641622557332,1.06222226,3208.5,3208.4,2.00479]
[1641622557733,0.0001,3208.5,3208.4,2.00479]
[1641622558133,1.06222226,3208.5,3208.4,2.00479]
[1641622558333,0.0001,3208.5,3208.4,2.00479]
[1641622558635,1.06222226,3208.5,3208.4,2.00479]
[1641622558835,0.0001,3208.5,3208.4,2.00479]
[1641622559237,1.06222226,3208.5,3208.4,2.00479]
[1641622559435,0.0001,3208.5,3208.4,2.00479]
[1641622560038,0.09885875,3208.5,3208.4,2.00479]
[1641622560836,1.16098101,3208.5,3208.4,2.00479]
[1641622565040,2.21727178,3208.5,3208.4,2.00479]
[1641622565741,2.21727178,3208.5,3208.4,2.269578]
[1641622565942,2.21727178,3208.5,3208.4,2.917878]
[1641622566545,2.11851303,3208.5,3208.4,2.917878]
[1641622566847,1.06222226,3208.5,3208.4,2.917878]
[1641622567644,0.0001,3208.5,3208.4,2.917878]
[1641622568244,1.06222226,3208.5,3208.4,2.917878]
[1641622568445,0.0001,3208.5,3208.4,2.917878]
[1641622568944,1.32036347,3209.1,3208.4,4.417878]
[1641622569146,1.32036347,3209.1,3208.9,1.5]
[1641622569343,1.32036347,3209.1,3209.0,0.264788]
[1641622569744,1.32036347,3209.1,3209.0,1.69077066]
[1641622570248,1.32036347,3209.1,3209.0,3.69556066]
[1641622571549,0.0920402,3209.3,3209.0,3.69556066]
[1641622571750,0.0920402,3209.3,3209.2,1.5]
[1641622571948,0.0920402,3209.3,3209.2,2.4386]
[1641622572349,0.0920402,3209.3,3209.2,4.708178]
[1641622573450,0.03,3209.4,3209.2,6.26547323]
[1641622573650,1.32036347,3209.6,3209.3,37.09591395]
[1641622573854,1.32036347,3209.6,3209.5,1.5]
[1641622574051,1.32036347,3209.7,3209.5,1.5]
[1641622574252,1.32036347,3209.7,3209.6,3.769578]
[1641622574653,1.32036347,3209.7,3209.6,2.269578]
[1641622574950,1.32036347,3209.7,3209.6,3.24056267]
[1641622575151,1.32036347,3209.7,3209.6,4.74056267]
[1641622575450,1.58443616,3209.9,3209.6,4.74056267]
[1641622575651,1.35036347,3210.3,3209.6,4.74056267]
[1641622576253,1.35036347,3210.3,3210.2,2.00479]
[1641622576452,1.35036347,3210.3,3210.2,3.6997866]
[1641622577956,0.03,3210.3,3210.2,3.6997866]
[1641622579660,0.03,3210.3,3210.2,3.9645746]
[1641622580261,0.03,3210.3,3210.2,3.6997866]
[1641622582263,0.03,3210.3,3210.2,3.6717866]
[1641622582664,0.03,3210.3,3210.2,3.0356866]
[1641622584968,0.670787,3210.3,3210.2,3.0356866]
[1641622586166,0.03,3210.3,3210.2,3.0356866]
[1641622588369,0.03,3210.3,3210.2,2.47470688]
[1641622589173,1.09162332,3210.3,3210.2,3.22320688]
[1641622589372,1.09162332,3210.3,3210.2,3.48799488]
[1641622589573,0.03,3210.3,3210.2,3.48799488]
[1641622594679,0.03,3210.3,3210.2,2.73949488]
[1641622594879,0.03,3210.3,3210.2,2.47470688]
[1641622600183,4.03,3210.3,3210.2,2.47470688]
[1641622600582,5.0916763,3210.3,3209.2,43.17390065]
[1641622600782,4.0,3209.8,3209.2,43.17390065]
[1641622600984,5.397087,3209.8,3209.2,22.68870065]
[1641622601284,5.397087,3209.8,3209.2,2.61771301]
[1641622601883,6.897087,3209.8,3209.2,2.61771301]
[1641622602483,6.897087,3209.8,3209.2,4.62250301]
[1641622603885,6.897087,3209.8,3209.2,3.06530236]
[1641622604284,5.397087,3209.8,3209.2,3.06530236]
[1641622608990,1.397087,3209.8,3209.2,3.06530236]
[1641622609191,0.640787,3209.8,3209.2,3.06530236]
[1641622611592,4.0,3209.7,3209.2,3.06530236]
[1641622614395,1.06186203,3209.6,3209.2,3.06530236]
[1641622615498,1.06186203,3209.6,3209.2,3.33009036]
[1641622615697,0.640787,3209.6,3209.2,3.33009036]
[1641622615899,0.640787,3209.6,3209.2,3.06530236]
[1641622616199,0.478,3209.8,3209.2,3.06530236]
[1641622616397,0.478,3209.8,3209.2,3.94200236]
[1641622616897,1.06182188,3209.7,3209.2,3.94200236]
[1641622618799,1.06182188,3209.7,3209.2,4.20679036]
[1641622618999,0.640787,3209.6,3209.2,4.20679036]
[1641622619199,0.640787,3209.6,3209.2,3.06530236]
[1641622619399,1.06182188,3209.5,3209.2,3.06530236]
[1641622620499,4.0,3209.7,3209.2,3.06530236]
[1641622620700,4.0,3209.7,3209.2,3.68660236]
[1641622620899,1.06181966,3209.6,3209.2,3.68660236]
[1641622621100,1.70260666,3209.6,3209.2,3.68660236]
[1641622621499,0.640787,3209.6,3209.2,3.68660236]
[1641622622600,0.478,3209.8,3209.2,3.68660236]
[1641622622801,2.00479,3209.9,3209.3,0.264788]
[1641622623003,1.06179414,3209.7,3209.3,0.264788]
[1641622623403,1.06179414,3209.8,3209.3,0.264788]
[1641622623909,2.00479,3209.9,3209.3,0.264788]
[1641622624102,2.645577,3209.9,3209.3,0.264788]
[1641622624703,1.06175743,3209.8,3209.3,0.264788]
[1641622625204,1.06175743,3209.8,3209.3,1.764788]
[1641622625807,1.05615251,3210.1,3209.3,1.764788]
[1641622625808,1.06175743,3210.0,3209.3,1.764788]
[1641622626206,1.06175743,3210.0,3209.3,3.32204685]
[1641622626408,1.06175743,3210.0,3209.3,1.82204685]
[1641622626709,1.06175743,3210.0,3209.9,2.00479]
[1641622626906,1.06175743,3210.0,3209.9,4.64848924]
[1641622627406,1.06175743,3210.0,3209.9,2.64369924]
[1641622627806,1.1498711,3210.0,3209.9,2.64369924]
[1641622628607,1.1498711,3210.0,3209.9,4.64848924]
[1641622628807,1.06175743,3210.0,3209.9,4.64848924]
[1641622630309,1.14986662,3210.0,3209.9,4.64848924]
[1641622632912,1.05615251,3210.1,3209.9,4.64848924]
[1641622633112,1.98505013,3210.8,3210.0,3.05690003]
[1641622633314,1.3237876,3210.4,3210.3,1.5]
[1641622633913,1.3237876,3210.4,3210.3,1.764788]
[1641622634113,2.43320224,3210.9,3210.3,1.764788]
[1641622634514,2.43320224,3210.9,3210.5,1.55666494]
[1641622634717,2.43320224,3210.9,3210.5,3.56145494]
[1641622634915,0.44815211,3211.3,3210.5,3.82624294]
[1641622635116,0.44815211,3211.3,3210.5,4.71602414]
[1641622635717,5.211e-05,3211.3,3211.1,3.05642992]
[1641622635918,3.616e-05,3211.4,3211.2,0.264788]
[1641622636117,3.616e-05,3211.4,3211.2,1.12912025]
[1641622636519,3.616e-05,3211.4,3211.3,1.5563185]
[1641622636721,3.616e-05,3211.4,3211.3,5.5658985]
[1641622637121,3.616e-05,3212.0,3211.3,5.5658985]
[1641622637322,3.616e-05,3212.0,3211.4,0.264788]
[1641622637721,0.640787,3211.9,3211.4,0.264788]
[1641622637927,0.640787,3211.9,3211.3,4.00958]
[1641622638327,2.140787,3211.9,3211.3,4.00958]
[1641622638530,1.5,3211.7,3211.3,4.00958]
[1641622639830,5.5,3211.7,3211.3,4.00958]
[1641622640429,0.640787,3211.9,3211.3,4.00958]
[1641622640831,0.640787,3211.9,3211.3,2.00479]
[1641622644033,1.69695878,3211.9,3211.3,2.00479]
[1641622644234,1.05617178,3211.9,3211.3,2.00479]
[1641622645136,1.05617178,3212.0,3211.3,2.00479]
[1641622646037,3.06096178,3212.1,3211.3,2.00479]
[1641622646737,1.5,3211.8,3211.3,2.00479]
[1641622647037,1.5,3211.8,3211.2,1.12912025]
[1641622647038,4.0,3211.6,3211.2,0.86433225]
[1641622648040,1.5,3211.5,3211.2,0.86433225]
[1641622648439,1.5,3211.3,3211.2,0.86433225]
[1641622648740,1.5,3211.3,3210.4,2.00479]
[1641622648741,3.50479,3211.3,3210.4,2.00479]
[1641622649139,2.00479,3211.3,3210.4,2.00479]
[1641622649941,2.00479,3211.3,3210.5,0.93471212]
[1641622650140,2.00479,3211.3,3210.6,0.264788]
[1641622655145,2.00479,3211.5,3210.6,0.264788]
[1641622656847,2.00479,3211.5,3211.1,2.00479]
[1641622657047,2.00479,3211.5,3211.2,0.81575956]
[1641622659151,0.640787,3211.6,3211.2,0.81575956]
[1641622659753,1.5,3211.7,3211.2,0.81575956]
[1641622660254,1.5,3211.7,3211.3,0.264788]
[1641622660453,1.5,3211.7,3211.3,1.047188]
[1641622660855,1.5,3211.7,3211.5,2.00479]
[1641622662759,6.00479,3212.1,3211.5,2.00479]
[1641622662958,2.00479,3212.1,3211.6,0.264788]
[1641622663162,0.03,3212.2,3211.6,0.264788]
[1641622663960,0.03,3212.2,3211.7,1.39114649]
[1641622664363,0.03,3212.2,3211.7,1.65593449]
[1641622664763,0.03,3212.2,3212.1,1.5]
[1641622664963,1.05617178,3212.7,3212.1,4.531378]
[1641622665164,1.05617178,3212.7,3212.1,3.031378]
[1641622665967,1.05617178,3212.7,3212.2,1.02430833]
[1641622666169,1.05617178,3212.7,3212.3,0.264788]
[1641622666569,1.05617178,3212.7,3212.6,1.5556769]
[1641622666970,1.05617178,3212.7,3212.6,3.8252549]
[1641622667169,0.03,3213.1,3212.6,3.8252549]
[1641622667370,0.03,3213.1,3212.8,1.5]
[1641622667570,0.03,3213.1,3213.0,1.55538654]
[1641622667969,0.03,3213.1,3213.0,2.56815891]
[1641622668770,0.03,3213.1,3213.0,1.01277237]
[1641622668971,0.03,3213.1,3213.0,3.01756237]
[1641622674680,4.03,3213.1,3213.0,3.01756237]
[1641622674880,6.1865,3213.1,3211.8,21.01525937]
[1641622675080,2.00479,3212.7,3212.0,2.00479]
[1641622675382,2.00479,3212.7,3212.1,0.264788]
[1641622676582,0.640787,3212.6,3212.1,0.264788]
[1641622676782,0.640787,3212.6,3212.2,0.7834183]
[1641622678883,4.640787,3212.6,3212.2,0.7834183]
[1641622679290,0.640787,3212.6,3212.2,0.7834183]
[1641622680288,2.00479,3212.7,3212.2,1.0482063]
[1641622680492,2.03479,3213.1,3212.2,1.0482063]
[1641622681089,2.03479,3213.1,3212.5,2.00479]
[1641622681289,2.03479,3213.1,3212.6,0.264788]
[1641622681490,2.03479,3213.1,3212.6,1.81903316]
[1641622681791,2.675577,3213.1,3212.7,0.82648804]
[1641622683392,2.03479,3213.1,3212.7,0.82648804]
[1641622683792,0.640787,3213.0,3212.7,0.82648804]
[1641622684494,2.03479,3213.1,3212.7,0.82648804]
[1641622685491,2.03479,3213.1,3212.6,1.81903316]
[1641622685892,0.640787,3213.0,3212.6,1.55424516]
[1641622691901,1.291987,3213.0,3212.6,1.55424516]
[1641622698002,4.0,3212.9,3212.6,1.55424516]
[1641622698202,1.5,3212.8,3211.7,0.7941942]
[1641622698400,1.5,3212.2,3211.7,0.7941942]
[1641622698601,4.0,3211.9,3211.7,0.7941942]
[1641622698801,1.5,3211.8,3211.7,0.7941942]
[1641622699003,4.0,3211.9,3211.7,0.7941942]
[1641622699203,2.00479,3211.8,3211.7,0.7941942]
[1641622699601,2.00479,3211.8,3211.4,1.2694168]
[1641622699602,3.50479,3211.8,3211.4,1.2694168]
[1641622700202,2.00479,3211.8,3211.4,1.2694168]
[1641622700604,1.5,3211.7,3211.4,1.2694168]
[1641622701106,2.00479,3211.5,3211.4,1.2694168]
[1641622701304,2.66389,3211.5,3211.4,1.2694168]
[1641622706908,2.00479,3211.5,3211.4,1.2694168]
[1641622711215,2.00479,3211.5,3211.4,2.0961168]
[1641622712413,2.00479,3211.5,3211.4,2.3609048]
[1641622714613,2.00479,3211.5,3211.4,2.0961168]
[1641622714914,2.00479,3211.5,3211.4,1.2694168]
[1641622716712,2.00479,3211.5,3211.4,1.5342048]
[1641622717614,2.00479,3211.5,3211.4,2.2766048]
[1641622717914,2.00479,3212.2,3211.4,3.7766048]
[1641622718617,2.00479,3212.2,3211.4,2.2766048]
[1641622718814,1.05617178,3212.6,3211.4,3.7766048]
[1641622719015,1.05617178,3212.6,3211.6,1.5561417]
[1641622719016,37.25357887,3212.6,3211.6,1.5561417]
[1641622719316,37.25357887,3212.6,3212.0,2.00479]
[1641622719517,37.89436587,3212.6,3212.0,2.00479]
[1641622719715,37.89436587,3212.6,3212.0,2.269578]
[1641622719917,37.89436587,3212.6,3212.1,1.15580773]
[1641622722622,37.89436587,3212.6,3212.2,0.264788]
[1641622723623,37.89436587,3212.6,3212.1,1.15580773]
[1641622725122,37.25357887,3212.6,3212.2,0.264788]
[1641622725524,37.89436587,3212.6,3212.2,0.264788]
[1641622725723,37.89436587,3212.6,3212.1,1.15580773]
[1641622728126,0.640787,3212.6,3212.1,1.15580773]
[1641622728326,3.09096178,3213.1,3212.2,0.264788]
[1641622729227,3.09096178,3213.1,3212.1,1.15580773]
[1641622729427,4.02846178,3213.1,3212.5,2.00479]
[1641622729627,0.640787,3213.0,3212.5,2.00479]
[1641622729831,6.68162958,3213.0,3212.5,2.00479]
[1641622730430,1.06076358,3212.9,3212.6,1.34984912]
[1641622731231,1.5,3212.8,3212.6,1.34984912]
[1641622731431,6.480157,3212.8,3212.6,1.34984912]
[1641622731830,1.06076358,3212.7,3212.6,1.34984912]
[1641622733334,0.08286831,3212.7,3212.6,1.34984912]
[1641622733832,1.14363189,3212.7,3212.6,1.34984912]
[1641622734533,1.06076358,3212.7,3212.6,1.34984912]
[1641622735535,1.14363189,3212.7,3212.6,1.34984912]
[1641622736635,6.12394389,3212.7,3212.6,1.34984912]
[1641622738238,6.04107558,3212.7,3212.6,1.34984912]
[1641622739240,1.06076358,3212.7,3212.6,1.34984912]
[1641622739442,1.14363038,3212.7,3212.6,1.34984912]
[1641622740642,1.06076358,3212.7,3212.6,1.34984912]
[1641622741244,1.06076358,3212.9,3212.6,1.34984912]
[1641622741645,1.06076358,3212.7,3212.6,1.34984912]
[1641622742048,4.980157,3212.8,3212.6,1.34984912]
[1641622742246,6.04084258,3212.9,3212.6,1.34984912]
[1641622742446,1.06076358,3212.9,3212.6,1.61463712]
[1641622742645,1.06076358,3212.7,3212.6,1.61463712]
[1641622742847,35.41421577,3213.0,3212.6,1.61463712]
[1641622743048,0.640787,3212.9,3212.6,1.34984912]
[1641622744447,34.35804399,3213.0,3212.6,1.34984912]
[1641622744848,1.06073664,3212.9,3212.6,1.34984912]
[1641622745850,1.70152364,3212.9,3212.6,1.34984912]
[1641622746050,5.70152364,3212.9,3212.6,1.34984912]
[1641622746852,1.06073664,3212.8,3212.6,1.34984912]
[1641622750557,34.35804399,3213.0,3212.6,1.34984912]
[1641622751158,1.0607225,3212.9,3212.6,1.34984912]
[1641622751359,1.0607225,3212.9,3212.7,0.264788]
[1641622751656,34.35804399,3213.0,3212.7,0.264788]
[1641622753459,0.03,3213.1,3212.7,0.264788]
[1641622753662,1.05617178,3213.4,3212.9,1.5]
[1641622753861,1.32021472,3213.6,3213.3,1.5]
[1641622754059,1.32021472,3213.6,3213.1,1.55542766]
[1641622754259,1.05709873,3213.3,3213.1,1.55542766]
[1641622754559,1.58376929,3213.8,3213.2,1.14259183]
[1641622755159,1.58376929,3213.8,3213.2,2.64259183]
[1641622755561,1.58376929,3213.8,3213.7,2.00479]
[1641622756060,0.03,3214.0,3213.7,2.269578]
[1641622756658,0.03,3214.0,3213.7,42.11331296]
[1641622768167,0.670787,3214.0,3213.7,42.11331296]
[1641622768368,0.670787,3214.0,3213.7,3.32565513]
[1641622768968,0.03,3214.0,3213.7,3.32565513]
[1641622772775,0.03,3214.0,3213.8,1.5]
[1641622772973,0.03,3214.0,3213.9,0.264788]
[1641622774675,0.03,3214.0,3213.7,3.06086713]
[1641622774877,0.8318,3214.0,3213.7,3.06086713]
[1641622776278,0.8318,3214.0,3213.7,3.32565513]
[1641622784088,0.03,3214.0,3213.7,3.32565513]
[1641622784287,0.03,3214.0,3213.8,1.5]
[1641622784686,0.03,3214.0,3213.7,3.06086713]
[1641622784887,0.03,3214.0,3213.8,0.264788]
[1641622789299,0.03,3214.0,3213.9,1.5]
[1641622791499,0.0001,3214.0,3213.9,1.5]
[1641622791700,0.4568,3214.8,3213.9,3.769578]
[1641622791901,0.4568,3214.8,3214.3,1.5]
[1641622792298,20.2068,3215.2,3214.4,0.264788]
[1641622792498,0.640787,3215.1,3214.4,0.264788]
[1641622792699,0.640787,3215.1,3214.5,1.31076985]
[1641622793303,4.0,3215.0,3214.5,1.31076985]
[1641622793504,1.5,3214.7,3214.5,1.31076985]
[1641622793901,4.977291,3214.6,3214.5,1.31076985]
[1641622796802,4.977291,3214.6,3213.9,2.00479]
[1641622797005,5.5,3214.5,3214.0,1.44165388]
[1641622797403,5.61862,3214.4,3214.0,1.44165388]
[1641622799005,0.640787,3214.4,3214.0,1.44165388]
[1641622799706,2.00479,3214.7,3214.0,1.44165388]
[1641622800507,0.640787,3214.6,3214.0,1.44165388]
[1641622803910,2.46309,3214.7,3214.0,1.44165388]
[1641622804810,0.640787,3214.6,3214.0,1.44165388]
[1641622808915,2.46309,3214.7,3214.0,1.44165388]
[1641622809214,4.0,3214.5,3214.0,1.44165388]
[1641622809414,4.0,3214.5,3214.0,2.22921753]
[1641622809815,6.4422,3214.5,3214.0,2.22921753]
[1641622810215,6.03811712,3214.4,3214.0,2.22921753]
[1641622810417,6.03811712,3214.4,3214.0,1.44165388]
[1641622810916,1.06028412,3214.3,3214.0,1.44165388]
[1641622811917,1.06028412,3214.4,3214.0,1.44165388]
[1641622812117,1.06028412,3214.2,3214.0,1.44165388]
[1641622812518,1.06028412,3214.4,3214.0,1.44165388]
[1641622812717,1.06028412,3214.1,3214.0,1.44165388]
[1641622813018,1.5,3214.1,3214.0,1.44165388]